bitfinex-derivatives/quotes_SOLF0:USTF0_20241120
["timestamp","ask_amount","ask_price","bid_price","bid_amount"]
[1732120591976,30.10228653,233.48,233.3,1.3142]
[1732120592173,3.6,233.47,233.32,2.1407]
[1732120592379,4.8486,233.47,233.32,2.1407]
[1732120592779,4.8486,233.47,233.33,2.1406]
[1732120592969,1.264,233.48,233.34,3.6]
[1732120593372,30.10228653,233.52,233.34,3.6]
[1732120593580,30.10228653,233.48,233.34,3.6]
[1732120593781,30.10228653,233.48,233.17,1.2684]
[1732120593782,2.1399,233.41,233.17,1.2684]
[1732120593978,30.10228653,233.44,233.31,2.1407]
[1732120594179,30.10228653,233.44,233.27,3.6]
[1732120594586,30.10228653,233.44,233.29,2.1409]
[1732120594990,2.1403,233.37,233.28,2.141]
[1732120595285,30.10228653,233.4,233.27,3.6]
[1732120595581,2.1404,233.35,233.27,3.6]
[1732120595788,2.1404,233.35,233.26,2.1412]
[1732120596080,2.1403,233.36,233.28,2.141]
[1732120596385,30.10228653,233.4,233.24,3.6]
[1732120597179,30.10228653,233.3,233.11,3.6]
[1732120597380,30.10228653,233.3,233.09,3.6]
[1732120597581,2.1415,233.24,233.1,3.6]
[1732120598083,1.2638,233.29,233.1,3.6]
[1732120598284,2.1413,233.25,233.18,2.1419]
[1732120598585,1.2638,233.29,233.12,30.10228653]
[1732120598784,1.2638,233.29,233.21,2.1416]
[1732120598977,1.2638,233.29,233.18,3.6]
[1732120599183,3.6,233.35,233.18,3.6]
[1732120599384,2.141,233.29,233.22,2.1416]
[1732120599778,3.6,233.35,233.18,3.6]
[1732120599980,2.1411,233.28,233.2,2.1417]
[1732120600181,3.6,233.35,233.18,3.6]
[1732120600385,3.6,233.35,233.11,30.10228653]
[1732120600582,30.10228653,233.31,233.11,33.70228653]
[1732120600790,33.70228653,233.35,233.15,30.10228653]
[1732120601290,33.70228653,233.35,233.11,3.6]
[1732120601291,2.1409,233.3,233.19,30.10228653]
[1732120601587,33.70228653,233.35,233.15,30.10228653]
[1732120602190,30.10228653,233.31,233.11,30.10228653]
[1732120602382,30.10228653,233.31,233.17,2.142]
[1732120602994,2.1418,233.2,233.13,2.1424]
[1732120603485,2.1418,233.2,233.09,6.2174]
[1732120603991,2.1418,233.2,233.14,2.1423]
[1732120604192,2.4826,233.25,233.09,2.6174]
[1732120604393,2.1415,233.23,233.09,2.6174]
[1732120604593,2.4826,233.25,233.19,2.1418]
[1732120604893,4.6239,233.25,233.11,30.10228653]
[1732120605096,4.6239,233.25,233.18,2.1419]
[1732120605291,2.4826,233.25,233.11,30.10228653]
[1732120605491,2.4826,233.25,233.09,1.3231]
[1732120605692,2.4826,233.25,233.14,2.1423]
[1732120605994,2.4826,233.25,233.09,1.3231]
[1732120606194,2.4826,233.25,233.15,2.1422]
[1732120606489,2.4826,233.25,233.09,1.3231]
[1732120606691,2.1416,233.22,233.09,1.3231]
[1732120607293,2.1417,233.22,233.12,2.1424]
[1732120607492,30.10228653,233.31,233.11,30.10228653]
[1732120607991,30.10228653,233.27,233.09,1.3231]
[1732120608397,30.10228653,233.27,233.17,2.142]
[1732120608699,30.10228653,233.27,233.09,1.3231]
[1732120608902,3.62,233.26,233.09,1.3231]
[1732120609198,30.10228653,233.23,233.05,1.2188]
[1732120609995,2.1423,233.15,233.1,2.1427]
[1732120610199,2.1423,233.15,233.05,1.2188]
[1732120610401,30.10228653,233.15,232.97,3.62]
[1732120610903,30.10228653,233.19,233.02,30.10228653]
[1732120611099,2.1422,233.16,233.03,1.3014]
[1732120611301,30.10228653,233.23,233.03,1.3014]
[1732120611599,2.1421,233.17,233.09,2.1428]
[1732120611798,2.1421,233.17,233.03,1.3014]
[1732120611799,30.10228653,233.23,233.07,3.62]
[1732120612000,2.5172,233.25,233.03,1.3014]
[1732120612001,30.10228653,233.19,233.03,1.3014]
[1732120612201,30.10228653,233.19,233.05,2.1431]
[1732120612398,30.10228653,233.15,232.8,30.10228653]
[1732120612602,1.2867,233.14,232.93,3.62]
[1732120612805,30.10228653,233.11,232.93,3.62]
[1732120613000,30.10228653,233.07,232.93,3.62]
[1732120613493,2.4618,233.1,232.94,30.10228653]
[1732120613697,2.1429,233.08,232.98,2.1437]
[1732120613896,2.1429,233.08,232.95,1.314]
[1732120614099,2.4618,233.1,232.95,1.314]
[1732120614297,1.2867,233.14,232.98,30.10228653]
[1732120614493,33.72228653,233.23,233.02,30.10228653]
[1732120614696,1.2867,233.22,233.06,30.10228653]
[1732120614998,1.2867,233.22,233.07,3.62]
[1732120615399,1.2867,233.22,233.15,2.1422]
[1732120615604,1.2867,233.22,233.07,3.62]
[1732120616103,1.2867,233.22,233.07,4.9234]
[1732120616308,2.4883,233.25,233.1,30.10228653]
[1732120616503,2.141,233.29,233.22,2.1415]
[1732120616697,30.10228653,233.31,233.22,2.1415]
[1732120616898,30.10228653,233.35,233.17,3.56]
[1732120617102,2.1407,233.32,233.17,3.56]
[1732120617405,30.10228653,233.35,233.17,3.56]
[1732120617406,30.10228653,233.35,233.18,30.10228653]
[1732120617699,2.1405,233.35,233.18,30.10228653]
[1732120617909,3.7117,233.36,233.19,1.3034]
[1732120618297,30.10228653,233.35,233.19,1.3034]
[1732120618497,3.7117,233.36,233.17,3.56]
[1732120618698,3.7117,233.36,233.16,2.1421]
[1732120618699,30.10228653,233.27,233.16,2.1421]
[1732120619106,30.10228653,233.27,233.13,3.56]
[1732120619505,2.1415,233.24,233.17,2.142]
[1732120619899,30.10228653,233.27,233.13,3.56]
[1732120620102,2.1415,233.23,233.13,3.56]
[1732120620507,2.1418,233.2,233.13,2.1424]
[1732120620716,3.56,233.32,233.07,2.5739]
[1732120620717,30.10228653,233.23,233.07,2.5739]
[1732120621011,3.56,233.24,233.0,30.86]
[1732120621012,30.10228653,233.19,233.01,3.56]
[1732120621507,3.8189,233.22,233.02,30.10228653]
[1732120622015,2.1424,233.14,233.07,2.1429]
[1732120622208,2.1424,233.14,232.96,2.5903]
[1732120622209,30.10228653,233.08,232.81,5.73576323]
[1732120622407,30.10228653,232.98,232.81,1.2206]
[1732120622609,2.1442,232.94,232.85,2.145]
[1732120623125,30.10228653,232.98,232.81,1.2206]
[1732120623305,30.10228653,233.02,232.82,30.10228653]
[1732120623503,30.10228653,233.06,232.86,30.10228653]
[1732120623708,3.7435,233.07,232.87,3.56]
[1732120623909,33.84578653,233.07,232.87,3.56]
[1732120624117,30.10228653,233.07,232.88,0.7879637]
[1732120624304,30.10228653,233.07,233.0,2.1436]
[1732120624611,30.10228653,233.16,232.96,3.56]
[1732120624612,30.10228653,233.11,232.96,3.56]
[1732120624809,30.10228653,233.11,232.84,71.1125186]
[1732120624810,30.10228653,233.07,232.97,2.5155]
[1732120625008,30.10228653,233.03,232.89,3.56]
[1732120625207,30.10228653,232.99,232.91,2.1444]
[1732120625410,30.10228653,232.99,232.86,2.5155]
[1732120625608,30.10228653,232.99,232.79,3.56]
[1732120625812,30.10228653,232.99,232.79,7.3118]
[1732120626008,30.10228653,232.99,232.8,0.78798547]
[1732120626210,34.08158653,233.04,232.82,30.10228653]
[1732120626615,34.08158653,233.04,232.79,13.04756323]
[1732120626918,34.08158653,233.04,232.85,2.1448]
[1732120626919,32.24578653,232.99,232.85,2.1448]
[1732120627115,30.10228653,232.99,232.79,7.3118]
[1732120627311,30.10228653,232.99,232.79,13.04756323]
[1732120627514,30.10228653,233.03,232.82,30.10228653]
[1732120628114,2.1433,233.01,232.94,2.1439]
[1732120628315,2.1433,233.01,232.82,30.10228653]
[1732120628316,30.10228653,233.03,232.89,3.56]
[1732120629224,2.1435,232.99,232.9,2.1443]
[1732120629521,30.10228653,233.03,232.89,3.56]
[1732120629910,3.9793,233.04,232.82,57.16336642]
[1732120629911,30.10228653,232.99,232.82,57.16336642]
[1732120630114,30.10228653,232.99,232.82,33.66228653]
[1732120630311,2.1436,232.98,232.91,2.1442]
[1732120630511,30.10228653,233.03,232.9,3.56]
[1732120630716,30.10228653,233.16,232.9,3.56]
[1732120630717,30.10228653,233.07,232.9,3.56]
[1732120630917,2.143,233.04,232.9,3.56]
[1732120631318,30.10228653,233.11,232.9,33.66228653]
[1732120631520,30.10228653,233.11,232.94,30.10228653]
[1732120631717,30.10228653,233.11,232.95,8.1119886]
[1732120631914,2.1422,233.13,232.95,9.51116323]
[1732120632220,30.10228653,233.19,232.98,30.10228653]
[1732120632416,2.1419,233.17,233.1,2.1424]
[1732120632619,30.10228653,233.19,233.09,3.56]
[1732120632815,30.10228653,233.19,233.1,3.56]
[1732120633020,30.10228653,233.23,233.1,3.56]
[1732120633526,2.1412,233.24,233.1,3.56]
[1732120633719,30.10228653,233.28,233.11,2.4728]
[1732120634425,30.10228653,233.24,233.11,2.4728]
[1732120634615,30.10228653,233.24,233.12,3.56]
[1732120634822,30.10228653,233.2,233.07,3.56]
[1732120635315,30.10228653,233.2,233.04,1.2435]
[1732120635515,30.10228653,233.2,233.05,3.56]
[1732120636222,30.10228653,233.24,233.06,30.10228653]
[1732120636420,1.2394,233.32,233.06,30.10228653]
[1732120636421,30.10228653,233.28,233.06,30.10228653]
[1732120636614,2.1415,233.21,233.09,2.1425]
[1732120636815,30.10228653,233.24,233.1,3.56]
[1732120637017,30.10228653,233.2,233.1,3.56]
[1732120637216,30.10228653,233.2,233.07,3.76]
[1732120638524,2.1421,233.14,233.08,2.1426]
[1732120638718,30.10228653,233.24,233.07,3.76]
[1732120639321,2.1417,233.19,233.07,3.76]
[1732120639523,30.10228653,233.24,233.07,3.76]
[1732120639823,30.10228653,233.2,233.07,3.76]
[1732120640022,30.10228653,233.16,233.0,3.76]
[1732120640224,30.10228653,233.16,233.0,4.9792]
[1732120640727,2.1422,233.13,233.0,4.9792]
[1732120641030,2.1422,233.13,233.01,30.10228653]
[1732120641321,30.10228653,233.12,232.97,5.0115]
[1732120641527,30.10228653,233.08,232.97,3.76]
[1732120641820,30.10228653,233.12,232.97,3.76]
[1732120642330,30.10228653,233.04,232.89,6.95336323]
[1732120642519,30.10228653,233.04,232.88,3.76]
[1732120642720,2.1437,232.97,232.91,2.1441]
[1732120643023,33.86228653,233.08,232.83,5.73576323]
[1732120643024,30.10228653,232.99,232.83,5.73576323]
[1732120643222,1.2376,232.98,232.81,28.50687989]
[1732120643427,1.2376,232.98,232.82,5.73576323]
[1732120643829,1.2376,232.98,232.81,5.0058]
[1732120644122,1.2376,232.98,232.84,31.32148653]
[1732120644723,1.2819,233.03,232.87,2.1445]
[1732120644923,1.2819,233.03,232.84,31.32148653]
[1732120645226,1.2819,233.03,232.88,30.10228653]
[1732120645427,1.2819,233.03,232.89,3.76]
[1732120645627,1.2819,233.03,232.84,1.2192]
[1732120645825,30.10228653,232.99,232.75,5.73576323]
[1732120646020,30.10228653,232.99,232.73,17.76531666]
[1732120646021,30.10228653,232.99,232.79,30.10228653]
[1732120646630,30.10228653,232.99,232.83,2.1449]
[1732120647033,2.144,232.94,232.85,2.1448]
[1732120647327,31.38418653,233.03,232.85,5.9048]
[1732120647524,30.10228653,232.99,232.85,3.76]
[1732120648223,30.10228653,232.99,232.81,2.1451]
[1732120648426,30.10228653,232.99,232.82,2.145]
[1732120648729,31.38418653,233.03,232.83,30.10228653]
[1732120648928,2.1436,232.98,232.87,30.10228653]
[1732120649133,1.2819,233.03,232.88,5.0717]
[1732120649329,30.10228653,233.11,232.91,30.10228653]
[1732120649529,31.33328653,233.15,232.99,2.1435]
[1732120649737,31.33328653,233.15,233.0,3.76]
[1732120649928,2.1425,233.1,233.0,3.76]
[1732120650126,31.33328653,233.15,233.0,3.76]
[1732120650426,30.10228653,233.15,233.0,3.76]
[1732120650623,2.1423,233.13,233.01,1.3117]
[1732120650827,228.0399482,233.58,233.01,1.3117]
[1732120650828,232.3162482,233.58,233.12,30.10228653]
[1732120651026,232.3162482,233.58,233.06,8.0]
[1732120651027,30.10228653,233.3,233.13,3.76]
[1732120651632,30.10228653,233.26,233.13,3.76]
[1732120652027,2.142,233.15,233.06,3.76]
[1732120652231,3.76,233.21,233.06,3.76]
[1732120653139,2.1417,233.19,233.08,30.10228653]
[1732120653631,2.1417,233.19,233.09,2.1425]
[1732120653831,1.2926,233.25,233.12,30.10228653]
[1732120654239,31.51351653,233.3,233.12,32.24448653]
[1732120654428,2.1411,233.25,233.12,32.24448653]
[1732120654633,31.51351653,233.3,233.12,30.10228653]
[1732120654935,2.1415,233.21,233.12,30.10228653]
[1732120655137,30.10228653,233.26,233.04,33.86228653]
[1732120656336,2.1419,233.16,233.07,2.1427]
[1732120656729,2.1419,233.16,233.04,33.86228653]
[1732120656930,2.1419,233.17,233.08,2.1426]
[1732120657133,3.76,233.25,233.04,33.86228653]
[1732120657435,2.1423,233.12,233.04,33.86228653]
[1732120657632,6.211,233.24,233.04,33.86228653]
[1732120657835,6.211,233.24,233.04,32.24528653]
[1732120658034,30.10228653,233.22,233.01,1.3117]
[1732120659236,6.211,233.24,233.04,30.10228653]
[1732120659733,2.1427,233.08,233.04,30.10228653]
[1732120659932,2.1427,233.08,233.01,1.3117]
[1732120660138,6.211,233.24,233.01,1.3117]
[1732120660331,2.1418,233.18,233.02,2.1432]
[1732120660536,6.211,233.24,233.02,2.1432]
[1732120660737,6.211,233.24,233.01,1.3117]
[1732120660738,2.451,233.24,233.04,30.10228653]
[1732120660934,2.1425,233.11,233.04,30.10228653]
[1732120661140,3.76,233.23,233.04,30.10228653]
[1732120661542,30.10228653,233.19,233.01,1.3117]
[1732120661744,30.10228653,233.15,232.96,30.10228653]
[1732120661941,2.1435,232.99,232.96,30.10228653]
[1732120662139,3.76,233.14,232.92,33.86228653]
[1732120662540,2.1437,232.97,232.92,33.86228653]
[1732120662941,2.5641,233.09,232.92,33.86228653]
[1732120663640,2.1436,232.98,232.92,33.86228653]
[1732120664435,2.5641,233.09,232.92,33.86228653]
[1732120665138,2.5641,233.09,232.96,30.10228653]
[1732120665741,2.5641,233.09,232.97,2.1437]
[1732120665938,2.5641,233.09,232.96,30.10228653]
[1732120666442,2.1431,233.04,232.98,2.1436]
[1732120667547,2.1427,233.08,233.02,2.1432]
[1732120667852,3.76,233.16,233.0,30.10228653]
[1732120668150,3.76,233.16,233.0,33.72228653]
[1732120668450,3.76,233.16,233.0,3.62]
[1732120668950,3.76,233.16,232.97,2.1437]
[1732120669144,3.76,233.16,232.97,5.7637]
[1732120669450,2.1432,233.02,232.97,3.62]
[1732120669652,30.10228653,233.14,232.97,3.62]
[1732120670351,30.10228653,233.09,232.92,30.10228653]
[1732120670550,2.1436,232.98,232.93,2.144]
[1732120670747,4.9517,233.08,232.92,30.10228653]
[1732120671246,1.3317,233.08,232.92,30.10228653]
[1732120671456,1.3317,233.08,232.9,3.62]
[1732120671457,30.10228653,233.14,232.96,30.10228653]
[1732120671748,2.1432,233.03,232.97,2.1436]
[1732120671948,2.1432,233.03,232.96,30.10228653]
[1732120672147,1.3317,233.16,232.96,30.10228653]
[1732120673260,2.143,233.05,233.0,2.1433]
[1732120673952,1.3317,233.16,232.98,3.62]
[1732120674155,1.3317,233.16,233.0,30.10228653]
[1732120674360,1.3317,233.16,233.04,30.10228653]
[1732120674554,2.1424,233.11,233.05,2.1429]
[1732120674757,1.3317,233.16,233.04,30.10228653]
[1732120674961,10.7148994,233.45,233.12,30.10228653]
[1732120674962,1.41123,233.3,233.12,30.10228653]
[1732120675157,1.41123,233.3,233.16,30.10228653]
[1732120675356,1.41123,233.3,233.13,3.62]
[1732120675357,1.41123,233.3,233.2,30.10228653]
[1732120675558,1.41123,233.3,233.21,3.62]
[1732120675956,1.41123,233.3,233.24,30.10228653]
[1732120676552,1.41123,233.3,233.28,2.1408]
[1732120676758,1.41123,233.3,233.29,3.62]
[1732120677663,2.1401,233.37,233.29,3.62]
[1732120677865,2.14,233.37,233.29,5.7607]
[1732120678061,34.02208653,233.44,233.29,3.62]
[1732120679262,3.9198,233.44,233.29,33.72228653]
[1732120680157,3.9198,233.44,233.29,35.86298653]
[1732120680357,2.5864,233.44,233.29,33.72228653]
[1732120680762,2.5864,233.44,233.29,30.10228653]
[1732120680964,30.10228653,233.4,233.28,3.62]
[1732120681169,2.1401,233.36,233.25,5.7611]
[1732120681358,30.10228653,233.4,233.25,3.62]
[1732120681765,2.1405,233.32,233.26,2.141]
[1732120681959,30.10228653,233.4,233.25,3.62]
[1732120682968,30.10228653,233.4,233.2,30.10228653]
[1732120683267,8.33019891,233.44,233.2,30.10228653]
[1732120683268,30.10228653,233.36,233.2,30.10228653]
[1732120683762,30.10228653,233.36,233.19,3.62]
[1732120684169,33.72228653,233.36,233.19,3.62]
[1732120684566,2.1413,233.23,233.19,3.62]
[1732120684960,33.72228653,233.36,233.17,3.62]
[1732120685160,30.10228653,233.31,233.17,3.62]
[1732120685363,2.5676,233.3,233.17,3.62]
[1732120685562,2.142,233.15,233.1,3.62]
[1732120685765,30.10228653,233.27,233.1,3.62]
[1732120685964,30.10228653,233.23,233.06,3.62]
[1732120686270,2.1422,233.13,233.06,3.62]
[1732120686564,2.1418,233.18,233.06,3.62]
[1732120686763,30.10228653,233.23,233.06,3.62]
[1732120686967,1.96989895,233.26,233.07,30.10228653]
[1732120687163,2.1418,233.18,233.07,30.10228653]
[1732120687363,1.96989895,233.26,233.04,30.10228653]
[1732120687567,30.10228653,233.24,233.04,30.10228653]
[1732120687768,2.1421,233.14,233.08,2.1427]
[1732120688068,30.10228653,233.24,233.04,30.10228653]
[1732120688274,2.1422,233.13,233.07,2.1427]
[1732120688463,30.10228653,233.24,233.04,30.10228653]
[1732120689264,0.73259895,233.26,233.08,30.10228653]
[1732120689467,0.73259895,233.26,233.12,30.10228653]
[1732120689968,2.1416,233.2,233.14,2.1421]
[1732120690175,0.73259895,233.26,233.12,30.10228653]
[1732120690563,2.1415,233.21,233.15,2.142]
[1732120691064,2.1412,233.24,233.16,2.1419]
[1732120691270,0.73259895,233.26,233.17,3.62]
[1732120691965,2.1411,233.25,233.2,2.1416]
[1732120692169,2.5676,233.3,233.17,3.62]
[1732120692364,898.48793411,235.02,233.2,30.10228653]
[1732120692365,30.10228653,233.4,233.2,30.10228653]
[1732120692865,30.10228653,233.31,233.16,3.62]
[1732120693066,30.10228653,233.27,233.1,3.8277]
[1732120693267,3.819,233.3,233.12,30.10228653]
[1732120693470,2.5109,233.3,233.16,30.10228653]
[1732120693670,30.10228653,233.35,233.22,2.1413]
[1732120693867,33.94918653,233.39,233.2,30.10228653]
[1732120694171,2.1402,233.35,233.29,2.1407]
[1732120694368,30.10228653,233.43,233.28,3.62]
[1732120694573,30.10228653,233.43,233.29,3.62]
[1732120694964,60.20457306,233.3,233.05,5.89495048]
[1732120695168,60.20457306,233.3,233.01,17.35794513]
[1732120695169,30.10228653,233.13,233.01,2.14680313]
[1732120695461,30.10228653,233.13,232.94,3.62]
[1732120695462,30.10228653,233.17,232.96,2.11467498]
[1732120695664,30.10228653,233.17,232.95,30.10228653]
[1732120695665,30.10228653,233.21,232.99,30.10228653]
[1732120696070,2.1416,233.2,233.05,2.1429]
[1732120696269,30.10228653,233.21,233.06,3.62]
[1732120696569,2.1421,233.15,232.95,32.2029214]
[1732120696873,3.8504,233.29,232.94,30.84]
[1732120696874,30.10228653,233.13,232.94,30.84]
[1732120697072,30.10228653,233.09,232.95,3.62]
[1732120698273,30.10228653,233.16,232.95,33.72228653]
[1732120698874,30.10228653,233.16,232.99,30.10228653]
[1732120699074,30.10228653,233.26,233.07,30.10228653]
[1732120699269,2.1417,233.19,233.1,2.1424]
[1732120699482,30.10228653,233.22,233.08,3.68]
[1732120700373,2.1419,233.17,233.08,5.8226]
[1732120700771,30.10228653,233.22,233.09,3.68]
[1732120700973,30.10228653,233.18,233.04,1.2103]
[1732120701173,30.10228653,233.18,233.04,3.68]
[1732120701976,2.1428,233.07,233.04,3.68]
[1732120702176,30.10228653,233.14,233.04,3.68]
[1732120702374,1.2327,233.13,233.04,3.68]
[1732120702570,1.2327,233.13,233.0,3.68]
[1732120702769,2.4466,233.13,233.0,3.68]
[1732120703175,30.10228653,233.18,233.0,3.68]
[1732120703379,30.10228653,233.18,233.01,30.10228653]
[1732120703676,2.1421,233.15,233.01,30.10228653]
[1732120704170,2.1419,233.16,233.09,2.1426]
[1732120704476,1.2139,233.24,233.08,3.68]
[1732120704677,31.31618653,233.24,233.12,2.1422]
[1732120704974,31.31618653,233.24,232.94,1.3181]
[1732120704975,30.10228653,233.16,232.87,4.44605048]
[1732120705170,30.10228653,232.91,232.54,117.89900962]
[1732120705373,30.10228653,232.74,232.66,2.5635]
[1732120705574,30.10228653,232.7,232.66,2.5635]
[1732120705872,30.10228653,232.7,232.53,5.18]
[1732120706174,30.10228653,232.67,232.5,2.5947]
[1732120706369,30.10228653,232.67,232.51,5.18]
[1732120707083,30.10228653,232.67,232.5,2.5947]
[1732120707278,30.10228653,232.67,232.51,5.18]
[1732120707479,30.10228653,232.71,232.51,5.18]
[1732120707676,3.6156181,232.7,232.53,30.10228653]
[1732120707882,3.6156181,232.69,232.53,30.10228653]
[1732120708079,3.6156181,232.68,232.53,30.10228653]
[1732120708376,3.6156181,232.67,232.52,5.18]
[1732120708582,3.6156181,232.66,232.52,5.18]
[1732120708781,3.6156181,232.65,232.52,5.18]
[1732120709084,32.24838653,232.71,232.52,5.18]
[1732120709379,9.36827178,232.7,232.53,30.10228653]
[1732120709580,3.60318145,232.69,232.57,30.10228653]
[1732120709781,30.10228653,232.8,232.57,30.10228653]
[1732120709981,5.76751264,232.79,232.57,30.10228653]
[1732120710176,5.76751264,232.78,232.57,30.10228653]
[1732120710480,5.76751264,232.78,232.61,30.10228653]
[1732120710672,5.76751264,232.77,232.62,5.18]
[1732120710876,30.10228653,232.8,232.62,5.18]
[1732120710877,5.76751264,232.76,232.62,5.18]
[1732120711073,5.76751264,232.75,232.62,5.18]
[1732120711277,32.24758653,232.8,232.7,2.1462]
[1732120711475,5.68763559,232.79,232.7,2.1462]
[1732120711675,5.68763559,232.78,232.62,5.18]
[1732120711877,32.24718653,232.84,232.72,2.146]
[1732120712075,5.68855187,232.83,232.65,30.10228653]
[1732120712282,5.68855187,232.82,232.69,30.10228653]
[1732120712485,30.10228653,232.89,232.7,1.23]
[1732120712679,5.68476456,232.88,232.7,1.23]
[1732120712879,5.68476456,232.87,232.73,30.10228653]
[1732120713075,0.37989,232.92,232.73,30.10228653]
[1732120713076,5.68476456,232.86,232.74,5.18]
[1732120713279,5.68476456,232.85,232.75,2.1457]
[1732120713482,5.68183615,232.84,232.74,5.18]
[1732120713680,5.68183615,232.83,232.7,1.23]
[1732120713988,2.1447,232.86,232.7,1.23]
[1732120714280,5.68092159,232.85,232.73,30.10228653]
[1732120714488,30.10228653,232.89,232.78,2.1454]
[1732120714687,5.67984525,232.88,232.78,2.1454]
[1732120714896,5.67984525,232.87,232.78,2.1454]
[1732120715083,0.37989,232.92,232.73,30.10228653]
[1732120715284,30.10228653,232.89,232.73,30.10228653]
[1732120715480,5.67693816,232.88,232.81,30.10228653]
[1732120715683,0.37989,232.92,232.87,2.1446]
[1732120715883,0.37989,232.92,232.85,30.10228653]
[1732120716585,5.18,233.09,232.85,30.10228653]
[1732120716780,5.18,233.09,232.82,5.18]
[1732120716781,7.82009427,233.03,232.93,2.144]
[1732120716984,5.67689427,233.02,232.89,30.10228653]
[1732120717190,30.10228653,233.04,232.85,30.10228653]
[1732120717490,2.1436,232.99,232.88,2.1445]
[1732120717687,5.67689427,232.98,232.88,2.1445]
[1732120717890,5.67689427,232.97,232.88,2.1445]
[1732120718087,5.67689427,232.96,232.88,2.1445]
[1732120718286,5.67689427,232.95,232.88,2.1445]
[1732120718589,30.10228653,233.04,232.9,2.1443]
[1732120718789,5.67502702,233.03,232.9,2.1443]
[1732120718990,5.67502702,233.02,232.9,2.1443]
[1732120719193,2.513,233.15,232.87,5.18]
[1732120719194,5.67502702,233.01,232.93,30.10228653]
[1732120719382,30.10228653,233.17,232.97,30.10228653]
[1732120719583,5.67727142,233.16,232.98,5.18]
[1732120719789,5.67727142,233.15,232.98,5.18]
[1732120719986,5.67727142,233.14,232.98,5.18]
[1732120720187,5.67727142,233.13,232.98,5.18]
[1732120720384,2.1424,233.11,233.01,2.1433]
[1732120720588,5.67905205,233.1,233.01,2.1433]
[1732120720784,5.67885384,233.09,233.01,2.1433]
[1732120720992,5.67885384,233.08,233.01,2.1433]
[1732120721194,30.10228653,233.17,232.97,30.10228653]
[1732120721195,2.1423,233.12,232.97,30.10228653]
[1732120721490,5.6816516,233.11,233.05,30.10228653]
[1732120721689,2.141,233.26,233.1,30.10228653]
[1732120721895,3.44982727,233.25,233.11,5.18]
[1732120722085,2.1416,233.2,233.09,30.10228653]
[1732120722290,30.10228653,233.3,233.06,1.2685]
[1732120722492,30.10228653,233.34,233.12,30.10228653]
[1732120722691,2.141,233.27,233.12,30.10228653]
[1732120722990,2.141,233.27,233.07,5.18]
[1732120722991,3.45229517,233.26,233.16,30.10228653]
[1732120723191,30.10228653,233.34,233.16,30.10228653]
[1732120723192,2.1408,233.29,233.16,30.10228653]
[1732120723391,3.35355227,233.28,233.2,30.10228653]
[1732120723600,1.2564,233.38,233.2,35.28228653]
[1732120724295,1.2564,233.38,233.2,5.18]
[1732120724788,30.10228653,233.29,233.2,5.18]
[1732120725192,2.1412,233.25,233.2,5.18]
[1732120725387,30.10228653,233.29,233.2,5.18]
[1732120725788,30.10228653,233.29,233.12,5.18]
[1732120726295,2.1413,233.23,233.12,5.18]
[1732120726593,30.10228653,233.29,233.12,5.18]
[1732120726790,1.2564,233.38,233.12,35.28228653]
[1732120726791,30.10228653,233.33,233.12,35.28228653]
[1732120727392,32.24268653,233.33,233.24,2.1412]
[1732120727594,30.10228653,233.33,233.16,30.10228653]
[1732120727895,2.1402,233.36,233.26,2.141]
[1732120728093,30.10228653,233.37,233.26,2.141]
[1732120728287,30.10228653,233.37,233.16,30.10228653]
[1732120728496,30.10228653,233.37,233.2,5.18]
[1732120729091,30.10228653,233.33,233.13,30.10228653]
[1732120729291,30.10228653,233.33,233.14,5.18]
[1732120729489,2.1405,233.32,233.22,2.1414]
[1732120729893,2.1405,233.32,233.14,5.18]
[1732120729894,30.10228653,233.33,233.14,5.18]
[1732120730193,30.10228653,233.29,233.14,5.18]
[1732120730395,30.10228653,233.29,233.11,1.2353]
[1732120730691,2.1413,233.23,233.11,1.2353]